fUST/lending_fUST_20250913
["ID","MTS","AMOUNT","RATE_DAILY","PERIOD"]
[385324171,1757776234112,-1509.34,0.00024656,2]
[385324172,1757776234122,-1509.34,0.00024656,2]
[385324173,1757776234132,-1509.34,0.00024656,2]
[385324174,1757776234141,-1509.50710191,0.00024656,2]
[385324175,1757776234151,-6125.7480881,0.00024657,2]
[385324176,1757776234172,-1644.90236954,0.00024657,2]
[385324177,1757776234181,-480.0,0.00024657,3]
[385324178,1757776234191,-480.0,0.00024657,3]
[385324179,1757776234201,-480.0,0.00024657,3]
[385324180,1757776234210,-480.0,0.00024657,3]
[385324181,1757776234220,-1172.1561402,0.00024657,2]
[385324182,1757776234229,-480.0,0.00024657,3]
[385324183,1757776234239,-10577.44593024,0.00024657,2]
[385324184,1757776234251,-51558.02492786,0.00024657,2]
[385324185,1757776234261,-480.0,0.00024657,3]
[385324186,1757776234270,-480.0,0.00024657,3]
[385324187,1757776234280,-578.62,0.00024657,3]
[385324188,1757776234289,-480.0,0.00024657,3]
[385324189,1757776234299,-480.0,0.00024657,3]
[385324190,1757776234309,-480.0,0.00024657,3]
[385324191,1757776234318,-480.0,0.00024657,3]
[385324192,1757776234328,-480.0,0.00024657,3]
[385324193,1757776234338,-480.0,0.00024657,3]
[385324194,1757776234349,-480.0,0.00024657,3]
[385324195,1757776234358,-480.0,0.00024657,3]
[385324196,1757776234368,-378.17148043,0.00024657,3]
[385324197,1757776234377,-483.73814685,0.00024657,3]
[385324198,1757776234387,-480.0,0.00024657,3]
[385324199,1757776234397,-480.0,0.00024657,3]
[385324200,1757776234406,-480.0,0.00024657,3]
[385324201,1757776234416,-480.0,0.00024657,3]
[385324202,1757776234426,-480.0,0.00024657,3]
[385324203,1757776234436,-480.0,0.00024657,3]
[385324204,1757776234446,-480.0,0.00024657,3]
[385324205,1757776234455,-483.25609583,0.00024657,3]
[385324206,1757776234465,-480.0,0.00024657,3]
[385324207,1757776234476,-480.0,0.00024657,3]
[385324208,1757776234486,-480.0,0.00024657,3]
[385324209,1757776234495,-480.0,0.00024657,3]
[385324210,1757776234505,-480.0,0.00024657,3]
[385324211,1757776234514,-480.0,0.00024657,3]
[385324212,1757776234524,-480.0,0.00024657,3]
[385324213,1757776234533,-480.0,0.00024657,3]
[385324214,1757776234543,-480.0,0.00024657,3]
[385324215,1757776234552,-480.0,0.00024657,3]
[385324216,1757776234562,-480.0,0.00024657,3]
[385324217,1757776234572,-480.0,0.00024657,3]
[385324218,1757776234581,-480.0,0.00024657,3]
[385324219,1757776234591,-480.0,0.00024657,3]
[385324220,1757776234600,-579.97316841,0.00024657,3]
[385324221,1757776234609,-481.30862865,0.00024657,3]
[385324222,1757776234619,-480.0,0.00024657,3]
[385324223,1757776234632,-480.0,0.00024657,3]
[385324224,1757776234642,-480.0,0.00024657,3]
[385324225,1757776234653,-480.0,0.00024657,3]
[385324226,1757776234666,-480.0,0.00024657,3]
[385324227,1757776234675,-480.0,0.00024657,3]
[385324228,1757776234685,-295.55875626,0.00024657,3]
[385324229,1757776234694,-480.2004721,0.00024657,3]
[385324230,1757776234704,-480.0,0.00024657,3]
[385324231,1757776234713,-483.81863866,0.00024657,3]
[385324232,1757776234723,-629.099186,0.00024657,3]
[385324233,1757776234732,-480.0,0.00024657,3]
[385324234,1757776234741,-483.87287522,0.00024657,3]
[385324235,1757776234752,-480.0,0.00024657,3]
[385324236,1757776234761,-6470.4949339,0.00024657,2]
[385324237,1757776234770,-480.0,0.00024657,3]
[385324238,1757776234779,-393.32444837,0.00024657,3]
[385324239,1757776234789,-480.0,0.00024657,3]
[385324240,1757776234798,-480.0,0.00024657,3]
[385324241,1757776234808,-480.0,0.00024657,3]
[385324242,1757776234818,-666.89,0.00024657,3]
[385324243,1757776234826,-480.0,0.00024657,3]
[385324244,1757776234835,-480.0,0.00024657,3]
[385324245,1757776234845,-480.0,0.00024657,3]
[385324246,1757776234854,-480.0,0.00024657,3]
[385324247,1757776234863,-582.67,0.00024657,3]
[385324248,1757776234873,-246.6369528,0.00024657,3]
[385324249,1757776234882,-480.0,0.00024657,3]
[385324250,1757776234891,-480.0,0.00024657,3]
[385324251,1757776234901,-483.83840608,0.00024657,3]
[385324252,1757776234910,-480.0,0.00024657,3]
[385324253,1757776234919,-280.30932051,0.00024657,3]
[385324254,1757776234928,-192.04259554,0.00024657,3]
[385324255,1757776234937,-480.0,0.00024657,3]
[385324256,1757776234946,-480.0,0.00024657,3]
[385324257,1757776234955,-480.0,0.00024657,3]
[385324258,1757776234964,-480.0,0.00024657,3]
[385324259,1757776234973,-797.57523399,0.00024657,2]
[385324278,1757776238698,-500.0,0.0002465,2]
[385324279,1757776238708,-500.0,0.0002465,2]
[385324280,1757776238717,-500.0,0.0002465,2]
[385324281,1757776238726,-500.0,0.0002465,2]
[385324282,1757776238735,-500.0,0.0002465,2]
[385324283,1757776238745,-301.52514647,0.0002465,2]
[385324284,1757776238754,-500.0,0.0002465,2]
[385324285,1757776238763,-500.0,0.0002465,2]
[385324286,1757776238774,-423.7343155,0.0002465,2]
[385324287,1757776238784,-590.32593038,0.0002465,2]
[385324288,1757776238793,-500.0,0.0002465,2]
[385324289,1757776238803,-500.0,0.0002465,2]
[385324290,1757776238812,-500.0,0.0002465,2]
[385324291,1757776238821,-500.0,0.0002465,2]
[385324292,1757776238830,-500.0,0.0002465,2]
[385324293,1757776238840,-500.0,0.0002465,2]
[385324294,1757776238850,-500.0,0.0002465,2]
[385324295,1757776238859,-544.62921404,0.0002465,2]
[385324296,1757776238868,-500.0,0.0002465,2]
[385324297,1757776238878,-247.64571971,0.0002465,2]
[385324298,1757776238887,-500.0,0.0002465,2]
[385324299,1757776238897,-500.0,0.0002465,2]
[385324300,1757776238906,-500.0,0.0002465,2]
[385324301,1757776238916,-500.0,0.0002465,2]
[385324302,1757776238925,-195.07789497,0.0002465,2]
[385324303,1757776238934,-500.0,0.0002465,2]
[385324304,1757776238942,-500.0,0.0002465,2]
[385324305,1757776238951,-500.0,0.0002465,2]
[385324306,1757776238961,-500.0,0.0002465,2]
[385324307,1757776238970,-478.25070231,0.0002465,2]
[385324308,1757776238979,-500.0,0.0002465,2]
[385324309,1757776238988,-500.0,0.0002465,2]
[385324310,1757776238998,-500.0,0.0002465,2]
[385324311,1757776239008,-500.0,0.0002465,2]
[385324312,1757776239024,-500.0,0.0002465,2]
[385324313,1757776239034,-500.0,0.0002465,2]
[385324314,1757776239044,-500.0,0.0002465,2]
[385324315,1757776239053,-500.0,0.0002465,2]
[385324316,1757776239062,-500.0,0.0002465,2]
[385324317,1757776239071,-500.0,0.0002465,2]
[385324318,1757776239082,-500.0,0.0002465,2]
[385324319,1757776239091,-500.0,0.0002465,2]
[385324320,1757776239101,-500.0,0.0002465,2]
[385324321,1757776239110,-500.0,0.0002465,2]
[385324322,1757776239119,-500.0,0.0002465,2]
[385324323,1757776239128,-500.0,0.0002465,2]
[385324324,1757776239137,-500.0,0.0002465,2]
[385324325,1757776239147,-500.0,0.0002465,2]
[385324326,1757776239156,-500.0,0.0002465,2]
[385324327,1757776239165,-500.0,0.0002465,2]
[385324328,1757776239175,-500.0,0.0002465,2]
[385324329,1757776239184,-500.0,0.0002465,2]
[385324330,1757776239194,-2311.53300141,0.00024657,2]
[385324331,1757776239203,-480.0,0.00024657,3]
[385324332,1757776239212,-480.0,0.00024657,3]
[385324333,1757776239221,-603.82,0.00024657,3]
[385324334,1757776239230,-480.0,0.00024657,3]
[385324335,1757776239239,-480.0,0.00024657,3]
[385324336,1757776239249,-480.0,0.00024657,3]
[385324337,1757776239258,-480.0,0.00024657,3]
[385324338,1757776239267,-480.0,0.00024657,3]
[385324339,1757776239276,-480.0,0.00024657,3]
[385324340,1757776239285,-481.56311209,0.00024657,3]
[385324341,1757776239294,-495.27360896,0.00024657,3]
[385324342,1757776239303,-480.0,0.00024657,3]
[385324343,1757776239315,-480.0,0.00024657,3]
[385324344,1757776239324,-480.0,0.00024657,3]
[385324345,1757776239334,-480.0,0.00024657,3]
[385324346,1757776239343,-483.64942071,0.00024657,3]
[385324353,1757776240773,-72.40057929,0.00024657,3]
[385324354,1757776240783,-480.0,0.00024657,3]
[385324355,1757776240793,-481.39302535,0.00024657,3]
[385324356,1757776240802,-1000.0,0.00024657,3]
[385324357,1757776240812,-480.0,0.00024657,3]
[385324358,1757776240821,-480.0,0.00024657,3]
[385324359,1757776240830,-480.0,0.00024657,3]
[385324360,1757776240840,-482.05561058,0.00024657,3]
[385324361,1757776240851,-480.0,0.00024657,3]
[385324362,1757776240860,-480.0,0.00024657,3]
[385324363,1757776240870,-480.0,0.00024657,3]
[385324364,1757776240879,-480.0,0.00024657,3]
[385324365,1757776240889,-480.0,0.00024657,3]
[385324366,1757776240898,-480.0,0.00024657,3]
[385324367,1757776240908,-480.0,0.00024657,3]
[385324368,1757776240917,-481.29838311,0.00024657,3]
[385324369,1757776240927,-480.0,0.00024657,3]
[385324370,1757776240937,-480.0,0.00024657,3]
[385324371,1757776240947,-480.0,0.00024657,3]
[385324372,1757776240957,-480.0,0.00024657,3]
[385324373,1757776240966,-480.0,0.00024657,3]
[385324374,1757776240975,-480.0,0.00024657,3]
[385324375,1757776240985,-480.0,0.00024657,3]
[385324376,1757776240994,-480.0,0.00024657,3]
[385324377,1757776241003,-480.0,0.00024657,3]
[385324378,1757776241012,-480.0,0.00024657,3]
[385324379,1757776241022,-480.0,0.00024657,3]
[385324380,1757776241031,-265.4959766,0.00024657,3]
[385324381,1757776241040,-83.93931494,0.00024657,3]
[385324447,1757776243922,-396.06068506,0.00024657,3]
[385324449,1757776243932,-415.14378887,0.00024657,3]
[385324735,1757776868258,200.0,0.00029492,60]
[385324736,1757776874223,200.0,0.00029492,60]
[385324740,1757776879177,200.0,0.00029492,60]
[385324741,1757776887072,200.0,0.00029492,60]
[385324743,1757776894299,200.0,0.00029492,60]
[385324744,1757776916073,249.44,0.00029492,60]
[385324745,1757776977879,6525.443176,0.00024,30]
[385324752,1757777216852,508.65,0.00027397,120]
[385324759,1757777324089,2000.0,0.0002739,120]
[385324761,1757777347124,2000.0,0.00027397,120]
[385324762,1757777357545,2000.0,0.00027397,120]
[385324764,1757777367113,2000.0,0.00027397,120]
[385324765,1757777376638,2000.0,0.00027397,120]
[385324767,1757777388289,2000.0,0.00027397,120]
[385324768,1757777397693,2000.0,0.00027397,120]
[385324769,1757777410226,629.0,0.00027397,120]
[385324800,1757777432030,-1056.50995864,0.000199,2]
[385324809,1757777432131,-720.88113926,0.000199,2]
[385324811,1757777432141,-207.0,0.0002,10]
[385324813,1757777432150,-40054.54398719,0.00021,3]
[385324814,1757777432159,-1777.39109786,0.00021149,2]
[385324815,1757777432170,-1777.39109786,0.00022398,2]
[385324817,1757777432179,-1000.0,0.000235,2]
[385324818,1757777432189,-181.555389,0.0002358,2]
[385324819,1757777432200,-1777.39109786,0.00023647,2]
[385324820,1757777432210,-283.53834652,0.00023917,2]
[385324821,1757777432219,-24971.30784445,0.00024,5]
[385324853,1757777437791,-585.66311844,0.0002378,2]
[385324854,1757777437800,-1730.73688156,0.00024,5]
[385324855,1757777437815,-854.47620674,0.00024,5]
[385324856,1757777437826,-1619.38572393,0.00024,5]
[385324857,1757777437839,-1371.63859856,0.00024,5]
[385324876,1757777439965,-848.5714655,0.00024,5]
[385324877,1757777439976,-1678.62309563,0.00024,5]
[385324878,1757777439987,-6691.61310203,0.00024,5]
[385324879,1757777439998,-4595.24333039,0.00024,5]
[385324880,1757777440009,-55638.40375121,0.00024,5]
[385324881,1757777440019,-1161.58087068,0.00024,5]
[385324882,1757777440028,-451.16401859,0.00024199,2]
[385324883,1757777440038,-168.0,0.00024259,2]
[385324884,1757777440047,-451.16401857,0.00024289,2]
[385324885,1757777440055,-264.82709426,0.00024298,2]
[385324886,1757777440065,-500.0,0.00024298,2]
[385324887,1757777440074,-243.89754389,0.00024298,2]
[385324888,1757777440084,-500.0,0.00024298,2]
[385324889,1757777440094,-171.62546823,0.00024298,2]
[385324890,1757777440103,-500.0,0.00024298,2]
[385324891,1757777440114,-500.0,0.00024298,2]
[385324892,1757777440128,-500.0,0.00024298,2]
[385324893,1757777440137,-500.0,0.00024298,2]
[385324894,1757777440146,-500.0,0.00024298,2]
[385324895,1757777440155,-22.29788525,0.00024298,2]
[385324896,1757777440168,-477.70211475,0.00024298,2]
[385324897,1757777440177,-13.01771269,0.00024298,2]
[385324898,1757777440208,-486.98228731,0.00024298,2]
[385324899,1757777440218,-25.55298234,0.00024298,2]
[385324900,1757777440229,-474.44701766,0.00024298,2]
[385324901,1757777440239,-500.0,0.00024298,2]
[385324902,1757777440248,-500.0,0.00024298,2]
[385324903,1757777440258,-500.0,0.00024298,2]
[385324904,1757777440267,-500.0,0.00024298,2]
[385324905,1757777440277,-161.65201188,0.00024298,2]
[385324906,1757777440287,-500.0,0.00024298,2]
[385324907,1757777440296,-500.0,0.00024298,2]
[385324908,1757777440305,-315.57263322,0.00024298,2]
[385324915,1757777443023,-160.0,0.000199,2]
[385324916,1757777443032,-332.25243702,0.00024298,2]
[385324917,1757777443042,-500.0,0.00024298,2]
[385324918,1757777443051,-500.0,0.00024298,2]
[385324919,1757777443060,-500.0,0.00024298,2]
[385324920,1757777443070,-500.0,0.00024298,2]
[385324921,1757777443079,-500.0,0.00024298,2]
[385324922,1757777443091,-500.0,0.00024298,2]
[385324923,1757777443102,-500.0,0.00024298,2]
[385324924,1757777443111,-500.0,0.00024298,2]
[385324925,1757777443121,-500.0,0.00024298,2]
[385324926,1757777443135,-500.0,0.00024298,2]
[385324927,1757777443144,-500.0,0.00024298,2]
[385324928,1757777443154,-500.0,0.00024298,2]
[385324929,1757777443164,-500.0,0.00024298,2]
[385324930,1757777443173,-500.0,0.00024298,2]
[385324931,1757777443183,-284.3034273,0.00024298,2]
[385324936,1757777446221,-215.6965727,0.00024298,2]
[385324937,1757777446232,-500.0,0.00024298,2]
[385324938,1757777446243,-500.0,0.00024298,2]
[385324939,1757777446253,-500.0,0.00024298,2]
[385324940,1757777446263,-500.0,0.00024298,2]
[385324941,1757777446273,-500.0,0.00024298,2]
[385324942,1757777446283,-500.0,0.00024299,2]
[385324943,1757777446293,-79640.28146967,0.000243,2]
[385324944,1757777446303,-451.16401857,0.00024378,2]
[385324945,1757777446313,-81957.24441857,0.000244,2]
[385324946,1757777446325,-11554.45976301,0.000244,2]
[385324947,1757777446399,-2782.80533103,0.000244,2]
[385324954,1757777689507,880.56169837,0.00029492,60]
[385324971,1757778078829,151.0,0.00027397,120]
[385324974,1757778279861,500.0,0.00017879,2]
[385324978,1757778463449,2403.84102455,0.00018221,2]
[385324980,1757778508181,155.43639724,0.00018221,2]
[385324981,1757778518204,5341.46,0.00029513,60]
[385325045,1757778632259,-274.31180953,0.00018446,2]
[385325046,1757778632313,-3945.5426273,0.00018446,2]
[385325047,1757778632323,-1200.0,0.00018631,2]
[385325048,1757778632333,-5000.0,0.00018632,2]
[385325049,1757778632344,-500.0,0.0001882,2]
[385325050,1757778632355,-166.5957614,0.00019297,2]
[385325051,1757778632364,-300.0,0.00019808,2]
[385325052,1757778632375,-300.0,0.00019808,2]
[385325053,1757778632384,-300.0,0.00019808,2]
[385325054,1757778632394,-500.0,0.00019811,2]
[385325055,1757778632403,-1371.11031904,0.000199,2]
[385325056,1757778632413,-500.0,0.00020853,2]
[385325057,1757778632423,-1371.11031879,0.00021149,2]
[385325058,1757778632433,-500.0,0.00021951,2]
[385325059,1757778632443,-1371.11031879,0.00022398,2]
[385325061,1757778632453,-250.0,0.00022409,2]
[385325063,1757778632462,-180.54,0.00022778,2]
[385325065,1757778632472,-500.0,0.00022851,2]
[385325067,1757778632481,-500.0,0.00022851,2]
[385325069,1757778632491,-596.97055021,0.00022851,2]
[385325071,1757778632500,-324.76143799,0.00022851,2]
[385325073,1757778632510,-3434.92757565,0.00022851,2]
[385325611,1757778638778,-4425.99718251,0.00022851,2]
[385325612,1757778638790,-1191.06,0.00022851,2]
[385325614,1757778638802,-500.4380789,0.00022851,2]
[385325616,1757778638814,-724.88990049,0.00022851,2]
[385325619,1757778638825,-500.0,0.00022851,2]
[385325621,1757778638836,-2000.0,0.00022851,2]
[385326103,1757778645231,-7968.95054603,0.00022851,2]
[385326104,1757778645242,-1200.0,0.00023103,2]
[385326106,1757778645253,-500.0,0.00023106,2]
[385326108,1757778645263,-181.5553896,0.00023151,2]
[385326109,1757778645274,-155.549197,0.00023569,2]
[385326111,1757778645284,-180.54,0.0002362,2]
[385326112,1757778645293,-168.0,0.00023775,2]
[385326114,1757778645303,-1175.81377111,0.000239,2]
[385326115,1757778645312,-2000.81,0.00024,7]
[385326117,1757778645323,-417.15472785,0.00024055,2]
[385326119,1757778645332,-160.0,0.00024055,2]
[385326120,1757778645342,-500.0,0.00024261,2]
[385326122,1757778645357,-334.5579033,0.00024281,2]
[385326124,1757778645368,-184.682,0.00024281,6]
[385326125,1757778645378,-36870.6764611,0.00024346,2]
[385326127,1757778645388,-6590.93279969,0.000244,2]
[385326128,1757778645398,-168.0,0.00024435,2]
[385326130,1757778645408,-180.54,0.00024462,2]
[385326132,1757778645418,-166.0,0.000245,7]
[385326134,1757778645427,-167.39038626,0.000245,5]
[385326136,1757778645437,-502.73,0.00024544,2]
[385326138,1757778645447,-22115.18457312,0.00024545,2]
[385326139,1757778645456,-550.02419451,0.00024557,2]
[385326141,1757778645466,-550.02419451,0.00024557,2]
[385326143,1757778645475,-550.02419451,0.00024557,2]
[385326145,1757778645484,-2425.36399514,0.00024557,2]
[385326147,1757778645494,-168.0,0.0002461,2]
[385326150,1757778645503,-847.12775373,0.00024625,2]
[385326152,1757778645512,-160.0,0.00024626,2]
[385326154,1757778645522,-643.44,0.00024647,3]
[385326156,1757778645531,-321.72,0.00024647,3]
[385326158,1757778645541,-160.86,0.00024647,3]
[385326159,1757778645551,-482.63,0.00024647,3]
[385326160,1757778645560,-152.58,0.00024647,3]
[385326161,1757778645569,-254.31,0.00024647,3]
[385326162,1757778645578,-317.89,0.00024647,3]
[385326163,1757778645588,-353.21,0.00024647,3]
[385326164,1757778645600,-367.93,0.00024647,3]
[385326165,1757778645609,-367.93,0.00024647,3]
[385326166,1757778645619,-357.71,0.00024647,3]
[385326167,1757778645629,-340.68,0.00024647,3]
[385326168,1757778645638,-319.39,0.00024647,3]
[385326169,1757778645648,-542.17,0.00024647,3]
[385326170,1757778645657,-353.23,0.00024647,3]
[385326171,1757778645666,-294.36,0.00024647,3]
[385326173,1757778645676,-245.3,0.00024647,3]
[385326174,1757778645686,-204.42,0.00024647,3]
[385326176,1757778645698,-170.35,0.00024647,3]
[385326177,1757778645708,-851.77,0.00024647,3]
[385326178,1757778645718,-564.81493993,0.00024656,2]
[385326179,1757778645728,-191.65072023,0.00024656,2]
[385326180,1757778645739,-281.47659029,0.00024656,2]
[385326181,1757778645749,-500.0,0.00024656,2]
[385326182,1757778645758,-500.0,0.00024656,2]
[385326183,1757778645769,-500.0,0.00024656,2]
[385326184,1757778645779,-500.0,0.00024656,2]
[385326185,1757778645789,-500.0,0.00024656,2]
[385326186,1757778645798,-516.4250078,0.00024656,2]
[385326187,1757778645808,-500.0,0.00024656,2]
[385326188,1757778645818,-500.0,0.00024656,2]
[385326189,1757778645827,-500.0,0.00024656,2]
[385326190,1757778645837,-500.0,0.00024656,2]
[385326191,1757778645849,-500.0,0.00024656,2]
[385326192,1757778645859,-500.0,0.00024656,2]
[385326193,1757778645870,-500.0,0.00024656,2]
[385326194,1757778645879,-500.0,0.00024656,2]
[385326195,1757778645890,-500.0,0.00024656,2]
[385326196,1757778645899,-500.0,0.00024656,2]
[385326197,1757778645908,-500.0,0.00024656,2]
[385326198,1757778645918,-500.0,0.00024656,2]
[385326199,1757778645927,-500.0,0.00024656,2]
[385326200,1757778645936,-500.0,0.00024656,2]
[385326201,1757778645946,-500.0,0.00024656,2]
[385326203,1757778645955,-500.0,0.00024656,2]
[385326204,1757778645965,-500.0,0.00024656,2]
[385326206,1757778645975,-500.0,0.00024656,2]
[385326208,1757778645984,-500.0,0.00024656,2]
[385326210,1757778645994,-500.0,0.00024656,2]
[385326212,1757778646004,-260.78330814,0.00024656,2]
[385326214,1757778646013,-157.0,0.00024656,2]
[385326216,1757778646023,-213.30796078,0.00024656,7]
[385326218,1757778646032,-157.0,0.00024656,2]
[385326220,1757778646042,-157.0,0.00024656,2]
[385326222,1757778646051,-157.0,0.00024656,2]
[385326241,1757778646229,-569.0,0.00024656,2]
[385326243,1757778646239,-500.0,0.00024656,2]
[385326245,1757778646248,-165.51629064,0.00024656,2]
[385326247,1757778646258,-157.0,0.00024656,2]
[385326249,1757778646268,-269.01132208,0.00024656,2]
[385326251,1757778646278,-157.0,0.00024656,2]
[385326253,1757778646288,-157.0,0.00024656,2]
[385326255,1757778646297,-157.0,0.00024656,2]
[385326257,1757778646307,-157.0,0.00024656,2]
[385326259,1757778646317,-500.0,0.00024656,2]
[385326261,1757778646326,-157.0,0.00024656,2]
[385326263,1757778646336,-157.0,0.00024656,2]
[385326265,1757778646345,-500.0,0.00024656,2]
[385326267,1757778646357,-157.0,0.00024656,2]
[385326269,1757778646367,-157.0,0.00024656,2]
[385326272,1757778646380,-3885.32522882,0.00024657,2]
[385326274,1757778646390,-5283.6647309,0.00024657,2]
[385326276,1757778646403,-9425.6577796,0.00024657,2]
[385326278,1757778646413,-500.89155773,0.00024657,3]
[385326280,1757778646423,-480.0,0.00024657,3]
[385326282,1757778646432,-480.0,0.00024657,3]
[385326284,1757778646442,-480.0,0.00024657,3]
[385326286,1757778646452,-480.0,0.00024657,3]
[385326288,1757778646461,-480.0,0.00024657,3]
[385326290,1757778646471,-480.0,0.00024657,3]
[385326292,1757778646480,-480.0,0.00024657,3]
[385326294,1757778646490,-480.0,0.00024657,3]
[385326296,1757778646499,-481.25252235,0.00024657,3]
[385326298,1757778646509,-480.0,0.00024657,3]
[385326300,1757778646519,-480.0,0.00024657,3]
[385326302,1757778646528,-480.0,0.00024657,3]
[385326304,1757778646538,-337.50312218,0.00024657,3]
[385326307,1757778646548,-245.90533223,0.00024657,3]
[385326309,1757778646558,-480.0,0.00024657,3]
[385326310,1757778646567,-480.0,0.00024657,3]
[385326312,1757778646577,-480.0,0.00024657,3]
[385326315,1757778646586,-480.0,0.00024657,3]
[385326316,1757778646596,-480.0,0.00024657,3]
[385326318,1757778646607,-480.0,0.00024657,3]
[385326321,1757778646617,-480.0,0.00024657,3]
[385326322,1757778646626,-480.0,0.00024657,3]
[385326323,1757778646635,-480.0,0.00024657,3]
[385326325,1757778646644,-480.0,0.00024657,3]
[385326327,1757778646654,-480.0,0.00024657,3]
[385326329,1757778646663,-480.0,0.00024657,3]
[385326330,1757778646673,-480.0,0.00024657,3]
[385326331,1757778646682,-480.0,0.00024657,3]
[385326332,1757778646694,-480.0,0.00024657,3]
[385326333,1757778646705,-480.0,0.00024657,3]
[385326334,1757778646714,-480.0,0.00024657,3]
[385326335,1757778646724,-480.0,0.00024657,3]
[385326336,1757778646735,-465.60984063,0.00024657,3]
[385326337,1757778646744,-480.0,0.00024657,3]
[385326338,1757778646754,-485.08102179,0.00024657,3]
[385326339,1757778646763,-483.93249028,0.00024657,3]
[385326340,1757778646776,-480.0,0.00024657,3]
[385326341,1757778646786,-494.28499477,0.00024657,3]
[385326342,1757778646795,-480.0,0.00024657,3]
[385326344,1757778646805,-480.0,0.00024657,3]
[385326346,1757778646815,-480.0,0.00024657,3]
[385326348,1757778646825,-480.0,0.00024657,3]
[385326350,1757778646835,-480.0,0.00024657,3]
[385326352,1757778646845,-480.0,0.00024657,3]
[385326354,1757778646856,-480.0,0.00024657,3]
[385326355,1757778646866,-151.0,0.00024657,7]
[385326356,1757778646877,-151.0,0.00024657,7]
[385326357,1757778646887,-226.573318,0.00024657,7]
[385326358,1757778646897,-480.0,0.00024657,3]
[385326359,1757778646907,-480.0,0.00024657,3]
[385326360,1757778646916,-480.0,0.00024657,3]
[385326361,1757778646926,-1000.0,0.00024657,3]
[385326362,1757778646935,-480.0,0.00024657,3]
[385326363,1757778646945,-480.54786962,0.00024657,3]
[385326364,1757778646954,-199.19834856,0.00024657,3]
[385326365,1757778646964,-481.33343268,0.00024657,3]
[385326366,1757778646973,-480.0,0.00024657,3]
[385326367,1757778646983,-468.05,0.00024657,3]
[385326368,1757778646992,-480.0,0.00024657,3]
[385326369,1757778647002,-480.0,0.00024657,3]
[385326370,1757778647011,-480.0,0.00024657,3]
[385326371,1757778647020,-500.0,0.00024657,3]
[385326372,1757778647029,-151.0,0.00024657,7]
[385326373,1757778647039,-500.0,0.00024657,3]
[385326374,1757778647049,-151.0,0.00024657,7]
[385326375,1757778647058,-500.0,0.00024657,3]
[385326376,1757778647067,-151.0,0.00024657,7]
[385326377,1757778647076,-500.0,0.00024657,3]
[385326378,1757778647086,-480.0,0.00024657,3]
[385326379,1757778647095,-151.0,0.00024657,7]
[385326380,1757778647106,-500.0,0.00024657,3]
[385326381,1757778647116,-480.0,0.00024657,3]
[385326382,1757778647125,-480.0,0.00024657,3]
[385326383,1757778647135,-500.0,0.00024657,3]
[385326384,1757778647144,-151.0,0.00024657,7]
[385326385,1757778647153,-500.0,0.00024657,3]
[385326386,1757778647164,-500.0,0.00024657,3]
[385326387,1757778647173,-500.0,0.00024657,3]
[385326388,1757778647183,-151.0,0.00024657,7]
[385326389,1757778647192,-480.0,0.00024657,3]